[Event "Swedish Chess Championship 2019: Kadett-SM"]
[Site "Stiga Sports Arena, Arenatorget 1, Eskilstuna, Sweden, Sweden"]
[Date "2019.07.08"]
[Round "1.1"]
[White "Ivarsson, Sebastian"]
[Black "Ostling, Albin"]
[Result "1-0"]
[TimeControl "90 minutes for 40 moves + 30 minutes for the rest of the game + 30 seconds per move from move one"]
[WhiteFideId "1738593"]
[BlackFideId "1746430"]
[WhiteElo "2079"]
[BlackElo "1660"]

1. d4 {[%clk 01:30:53]} {[%emt 00:00:06]} Nf6 {[%clk 01:30:58]} {[%emt
00:00:03]} 2. c4 {[%clk 01:31:16]} {[%emt 00:00:06]} g6 {[%clk 01:31:23]}
{[%emt 00:00:06]} 3. Nc3 {[%clk 01:31:39]} {[%emt 00:00:07]} Bg7 {[%clk
01:31:46]} {[%emt 00:00:07]} 4. Nf3 {[%clk 01:31:40]} {[%emt 00:00:28]} O-O
{[%clk 01:32:05]} {[%emt 00:00:11]} 5. g3 {[%clk 01:32:01]} {[%emt 00:00:09]}
d6 {[%clk 01:32:19]} {[%emt 00:00:17]} 6. Bg2 {[%clk 01:31:47]} {[%emt
00:00:43]} Qe8 {[%clk 01:28:44]} {[%emt 00:04:05]} 7. b3 {[%clk 01:22:27]}
{[%emt 00:09:50]} e5 {[%clk 01:25:03]} {[%emt 00:04:12]} 8. dxe5 {[%clk
01:17:32]} {[%emt 00:05:25]} dxe5 {[%clk 01:25:15]} {[%emt 00:00:18]} 9. Ba3
{[%clk 01:15:31]} {[%emt 00:02:31]} e4 {[%clk 01:15:09]} {[%emt 00:10:36]} 10.
Nd4 {[%clk 01:14:24]} {[%emt 00:01:37]} e3 {[%clk 00:57:26]} {[%emt 00:18:14]}
11. f3 {[%clk 01:11:32]} {[%emt 00:03:21]} Qe5 {[%clk 00:54:40]} {[%emt
00:03:16]} 12. Bxf8 {[%clk 01:08:11]} {[%emt 00:03:51]} Kxf8 {[%clk 00:54:35]}
{[%emt 00:00:35]} 13. Rc1 {[%clk 01:06:37]} {[%emt 00:02:04]} Nh5 {[%clk
00:53:17]} {[%emt 00:01:48]} 14. Ndb5 {[%clk 01:05:26]} {[%emt 00:01:42]} Nd7
{[%clk 00:43:25]} {[%emt 00:10:22]} 15. O-O {[%clk 01:01:47]} {[%emt 00:04:08]}
f5 {[%clk 00:22:14]} {[%emt 00:21:41]} 16. f4 {[%clk 01:00:48]} {[%emt
00:01:29]} Qc5 {[%clk 00:18:40]} {[%emt 00:04:04]} 17. Na4 {[%clk 00:59:03]}
{[%emt 00:02:15]} Qe7 {[%clk 00:17:58]} {[%emt 00:01:13]} 18. Nxc7 {[%clk
00:57:31]} {[%emt 00:02:01]} g5 {[%clk 00:16:15]} {[%emt 00:02:13]} 19. Nxa8
{[%clk 00:52:52]} {[%emt 00:05:10]} gxf4 {[%clk 00:13:10]} {[%emt 00:03:35]} 20.
gxf4 {[%clk 00:52:01]} {[%emt 00:01:20]} Qh4 {[%clk 00:11:44]} {[%emt
00:01:43]} 21. Qd6+ {[%clk 00:48:55]} {[%emt 00:03:49]} Kg8 {[%clk 00:08:43]}
{[%emt 00:03:31]} 22. Qe6+ {[%clk 00:44:42]} {[%emt 00:04:43]} Kh8 {[%clk
00:08:59]} {[%emt 00:00:14]} 23. Qxf5 {[%clk 00:43:33]} {[%emt 00:01:39]} Ng3
{[%clk 00:07:39]} {[%emt 00:01:50]} 24. hxg3 {[%clk 00:42:57]} {[%emt
00:01:06]} 1-0

[Event "Swedish Chess Championship 2019: Kadett-SM"]
[Site "Stiga Sports Arena, Arenatorget 1, Eskilstuna, Sweden, Sweden"]
[Date "2019.07.08"]
[Round "1.2"]
[White "Alfredsson, Daniel"]
[Black "Nguyen, Gabriel"]
[Result "0-1"]
[TimeControl "90 minutes for 40 moves + 30 minutes for the rest of the game + 30 seconds per move from move one"]
[WhiteFideId "1742205"]
[BlackFideId "1720791"]
[WhiteElo "1652"]
[BlackElo "2035"]

1. d4 {[%clk 01:30:47]} {[%emt 00:00:12]} Nf6 {[%clk 01:30:53]} {[%emt
00:00:07]} 2. Bf4 {[%clk 01:30:59]} {[%emt 00:00:18]} g6 {[%clk 01:31:06]}
{[%emt 00:00:18]} 3. Nc3 {[%clk 01:30:33]} {[%emt 00:00:56]} d5 {[%clk
01:30:03]} {[%emt 00:01:32]} 4. e3 {[%clk 01:29:55]} {[%emt 00:01:09]} Bg7
{[%clk 01:30:16]} {[%emt 00:00:16]} 5. Nf3 {[%clk 01:28:42]} {[%emt 00:01:43]}
O-O {[%clk 01:30:24]} {[%emt 00:00:23]} 6. Nb5 {[%clk 01:26:05]} {[%emt
00:03:07]} Na6 {[%clk 01:27:47]} {[%emt 00:03:08]} 7. c4 {[%clk 01:25:19]}
{[%emt 00:01:15]} c6 {[%clk 01:20:06]} {[%emt 00:08:11]} 8. Nc3 {[%clk
01:24:46]} {[%emt 00:01:03]} Bf5 {[%clk 01:08:21]} {[%emt 00:12:15]} 9. Be2
{[%clk 01:21:49]} {[%emt 00:03:27]} Ne4 {[%clk 00:51:18]} {[%emt 00:17:32]} 10.
cxd5 {[%clk 01:14:12]} {[%emt 00:08:07]} Nxc3 {[%clk 00:50:03]} {[%emt
00:01:46]} 11. bxc3 {[%clk 01:14:32]} {[%emt 00:00:10]} cxd5 {[%clk 00:49:20]}
{[%emt 00:01:12]} 12. Qb3 {[%clk 01:13:06]} {[%emt 00:01:56]} Qa5 {[%clk
00:46:32]} {[%emt 00:03:19]} 13. O-O {[%clk 01:07:04]} {[%emt 00:06:32]} b6
{[%clk 00:33:51]} {[%emt 00:13:11]} 14. Bxa6 {[%clk 01:03:24]} {[%emt
00:04:10]} Qxa6 {[%clk 00:34:17]} {[%emt 00:00:04]} 15. Qxd5 {[%clk 01:02:39]}
{[%emt 00:01:14]} Be6 {[%clk 00:30:30]} {[%emt 00:04:17]} 16. Qe4 {[%clk
01:02:32]} {[%emt 00:00:37]} Rfd8 {[%clk 00:28:49]} {[%emt 00:02:11]} 17. Qc2
{[%clk 00:58:49]} {[%emt 00:04:12]} Rac8 {[%clk 00:29:09]} {[%emt 00:00:11]} 18.
Rfc1 {[%clk 00:53:54]} {[%emt 00:05:25]} Qa3 {[%clk 00:28:33]} {[%emt
00:01:05]} 19. Ng5 {[%clk 00:48:35]} {[%emt 00:05:50]} Bc4 {[%clk 00:26:11]}
{[%emt 00:02:52]} 20. Nf3 {[%clk 00:45:15]} {[%emt 00:03:49]} Be6 {[%clk
00:21:55]} {[%emt 00:04:46]} 21. Ng5 {[%clk 00:44:32]} {[%emt 00:01:13]} Bc4
{[%clk 00:21:53]} {[%emt 00:00:31]} 22. Nf3 {[%clk 00:44:51]} {[%emt 00:00:12]}
Be6 {[%clk 00:21:21]} {[%emt 00:01:02]} 23. Ng5 {[%clk 00:45:06]} {[%emt
00:00:15]} Bd5 {[%clk 00:21:07]} {[%emt 00:03:01]} 24. Qd3 {[%clk 00:41:03]}
{[%emt 00:04:32]} a6 {[%clk 00:20:37]} {[%emt 00:01:01]} 25. Nf3 {[%clk
00:37:14]} {[%emt 00:04:19]} b5 {[%clk 00:20:19]} {[%emt 00:00:48]} 26. Qd2
{[%clk 00:36:39]} {[%emt 00:01:05]} Rc6 {[%clk 00:17:33]} {[%emt 00:03:14]} 27.
Ne5 {[%clk 00:32:58]} {[%emt 00:04:13]} Bxe5 {[%clk 00:17:40]} {[%emt
00:00:23]} 28. dxe5 {[%clk 00:30:55]} {[%emt 00:02:34]} Rcc8 {[%clk 00:17:54]}
{[%emt 00:00:17]} 29. Rd1 {[%clk 00:29:57]} {[%emt 00:01:27]} Bc4 {[%clk
00:15:15]} {[%emt 00:03:09]} 30. Qc2 {[%clk 00:24:33]} {[%emt 00:05:55]} Rxd1+
{[%clk 00:15:14]} {[%emt 00:00:31]} 31. Rxd1 {[%clk 00:24:44]} {[%emt
00:00:19]} Qxa2 {[%clk 00:13:16]} {[%emt 00:02:28]} 32. Qe4 {[%clk 00:21:15]}
{[%emt 00:03:58]} Qe2 {[%clk 00:11:20]} {[%emt 00:02:24]} 33. Qd4 {[%clk
00:20:36]} {[%emt 00:01:10]} h5 {[%clk 00:08:27]} {[%emt 00:03:23]} 34. h3
{[%clk 00:17:43]} {[%emt 00:03:24]} a5 {[%clk 00:04:32]} {[%emt 00:04:26]} 35.
Bg5 {[%clk 00:17:08]} {[%emt 00:01:05]} Be6 {[%clk 00:01:54]} {[%emt 00:03:07]}
36. Bxe7 {[%clk 00:15:43]} {[%emt 00:01:55]} Qc4 {[%clk 00:02:05]} {[%emt
00:00:18]} 37. Qxc4 {[%clk 00:12:42]} {[%emt 00:03:31]} Bxc4 {[%clk 00:02:31]}
{[%emt 00:00:04]} 38. Ra1 {[%clk 00:12:45]} {[%emt 00:00:28]} Ra8 {[%clk
00:02:06]} {[%emt 00:00:54]} 39. Bb4 {[%clk 00:12:36]} {[%emt 00:00:40]} a4
{[%clk 00:02:21]} {[%emt 00:00:14]} 40. f4 {[%clk 00:11:40]} {[%emt 00:01:26]}
Rd8 {[%clk 00:02:27]} {[%emt 00:00:25]} 41. Bd6 {[%clk 00:10:25]} {[%emt
00:01:45]} Kg7 {[%clk 00:02:23]} {[%emt 00:00:33]} 42. Kf2 {[%clk 00:09:51]}
{[%emt 00:01:04]} Rc8 {[%clk 00:02:47]} {[%emt 00:00:06]} 43. Rd1 {[%clk
00:08:12]} {[%emt 00:02:09]} Bb3 {[%clk 00:01:54]} {[%emt 00:01:21]} 44. Rc1
{[%clk 00:08:09]} {[%emt 00:00:36]} f6 {[%clk 00:30:11]} {[%emt 00:03:14]} 45.
h4 {[%clk 00:36:10]} {[%emt 00:02:30]} fxe5 {[%clk 00:30:19]} {[%emt 00:00:23]}
46. Bxe5+ {[%clk 00:36:21]} {[%emt 00:00:19]} Kf7 {[%clk 00:30:45]} {[%emt
00:00:04]} 47. Ra1 {[%clk 00:35:52]} {[%emt 00:01:00]} Ra8 {[%clk 00:28:53]}
{[%emt 00:02:22]} 48. Ra3 {[%clk 00:31:33]} {[%emt 00:04:48]} Rd8 {[%clk
00:28:26]} {[%emt 00:00:57]} 49. Bd4 {[%clk 00:31:28]} {[%emt 00:00:35]} Re8
{[%clk 00:27:51]} {[%emt 00:01:06]} 50. Kf3 {[%clk 00:31:12]} {[%emt 00:00:46]}
Bd5+ {[%clk 00:27:25]} {[%emt 00:00:56]} 51. Kf2 {[%clk 00:31:03]} {[%emt
00:00:39]} Ke6 {[%clk 00:27:33]} {[%emt 00:00:21]} 52. Ra1 {[%clk 00:28:15]}
{[%emt 00:03:20]} Kf5 {[%clk 00:26:05]} {[%emt 00:01:57]} 53. Bc5 {[%clk
00:26:34]} {[%emt 00:02:11]} Rc8 {[%clk 00:24:34]} {[%emt 00:02:00]} 54. Bb4
{[%clk 00:26:15]} {[%emt 00:00:50]} Bb3 {[%clk 00:24:47]} {[%emt 00:00:17]} 55.
Re1 {[%clk 00:24:54]} {[%emt 00:01:51]} Ke4 {[%clk 00:24:56]} {[%emt 00:00:20]}
56. Re2 {[%clk 00:22:59]} {[%emt 00:02:26]} Rd8 {[%clk 00:23:41]} {[%emt
00:01:45]} 57. Ke1 {[%clk 00:17:56]} {[%emt 00:05:33]} Rd1+ {[%clk 00:23:36]}
{[%emt 00:00:35]} 58. Kf2 {[%clk 00:17:55]} {[%emt 00:00:31]} Bc4 {[%clk
00:22:58]} {[%emt 00:01:08]} 59. Rb2 {[%clk 00:15:42]} {[%emt 00:02:43]} Rf1+
{[%clk 00:22:49]} {[%emt 00:00:39]} 60. Kg3 {[%clk 00:16:06]} {[%emt 00:00:06]}
Kxe3 {[%clk 00:22:35]} {[%emt 00:00:44]} 0-1

[Event "Swedish Chess Championship 2019: Kadett-SM"]
[Site "Stiga Sports Arena, Arenatorget 1, Eskilstuna, Sweden, Sweden"]
[Date "2019.07.08"]
[Round "1.3"]
[White "Muntean, Victor"]
[Black "Nilsson, Oliver"]
[Result "1-0"]
[TimeControl "90 minutes for 40 moves + 30 minutes for the rest of the game + 30 seconds per move from move one"]
[WhiteFideId "1054414"]
[BlackFideId "1730177"]
[WhiteElo "1971"]
[BlackElo "1574"]

1. e4 {[%clk 01:30:57]} {[%emt 00:00:03]} e5 {[%clk 01:30:45]} {[%emt
00:00:15]} 2. Nf3 {[%clk 01:31:13]} {[%emt 00:00:13]} Nc6 {[%clk 01:30:44]}
{[%emt 00:00:32]} 3. Bc4 {[%clk 01:31:24]} {[%emt 00:00:19]} Bc5 {[%clk
01:31:01]} {[%emt 00:00:13]} 4. c3 {[%clk 01:31:41]} {[%emt 00:00:12]} Nf6
{[%clk 01:31:17]} {[%emt 00:00:14]} 5. d3 {[%clk 01:31:42]} {[%emt 00:00:29]}
d5 {[%clk 01:28:22]} {[%emt 00:03:26]} 6. exd5 {[%clk 01:30:47]} {[%emt
00:01:25]} Nxd5 {[%clk 01:28:43]} {[%emt 00:00:08]} 7. Qb3 {[%clk 01:29:46]}
{[%emt 00:01:32]} Be6 {[%clk 01:28:32]} {[%emt 00:00:41]} 8. Qxb7 {[%clk
01:29:39]} {[%emt 00:00:37]} Na5 {[%clk 01:28:22]} {[%emt 00:00:40]} 9. Qb5+
{[%clk 01:29:51]} {[%emt 00:00:17]} c6 {[%clk 01:28:03]} {[%emt 00:00:49]} 10.
Qxc5 {[%clk 01:30:04]} {[%emt 00:00:17]} Nxc4 {[%clk 01:28:15]} {[%emt
00:00:18]} 11. Qxc6+ {[%clk 01:29:32]} {[%emt 00:01:02]} Ke7 {[%clk 01:28:38]}
{[%emt 00:00:07]} 12. dxc4 {[%clk 01:29:13]} {[%emt 00:00:49]} Rc8 {[%clk
01:28:19]} {[%emt 00:00:49]} 13. Qb5 {[%clk 01:28:41]} {[%emt 00:01:02]} Nf4
{[%clk 01:28:36]} {[%emt 00:00:12]} 14. Bxf4 {[%clk 01:28:13]} {[%emt
00:00:59]} exf4 {[%clk 01:28:48]} {[%emt 00:00:18]} 15. Qg5+ {[%clk 01:26:28]}
{[%emt 00:02:14]} f6 {[%clk 01:28:18]} {[%emt 00:01:01]} 16. Qxg7+ {[%clk
01:26:48]} {[%emt 00:00:10]} Kd6 {[%clk 01:28:28]} {[%emt 00:00:19]} 17. Na3
{[%clk 01:26:40]} {[%emt 00:00:38]} Bxc4 {[%clk 01:26:48]} {[%emt 00:02:10]} 18.
Nxc4+ {[%clk 01:26:46]} {[%emt 00:00:24]} Rxc4 {[%clk 01:27:11]} {[%emt
00:00:08]} 19. O-O-O+ {[%clk 01:27:08]} {[%emt 00:00:08]} Kc5 {[%clk 01:27:30]}
{[%emt 00:00:10]} 20. Rxd8 {[%clk 01:27:23]} {[%emt 00:00:15]} Rxd8 {[%clk
01:27:51]} {[%emt 00:00:09]} 21. Qc7+ {[%clk 01:27:41]} {[%emt 00:00:12]} 1-0

[Event "Swedish Chess Championship 2019: Kadett-SM"]
[Site "Stiga Sports Arena, Arenatorget 1, Eskilstuna, Sweden, Sweden"]
[Date "2019.07.08"]
[Round "1.4"]
[White "Backstrom, Viggo"]
[Black "Dingertz, Erik"]
[Result "0-1"]
[TimeControl "90 minutes for 40 moves + 30 minutes for the rest of the game + 30 seconds per move from move one"]
[WhiteFideId "1739719"]
[BlackFideId "1741578"]
[WhiteElo "1510"]
[BlackElo "1959"]

1. e4 {[%clk 01:30:52]} {[%emt 00:00:06]} e5 {[%clk 01:30:35]} {[%emt
00:00:27]} 2. Nf3 {[%clk 01:31:05]} {[%emt 00:00:16]} Nc6 {[%clk 01:30:53]}
{[%emt 00:00:12]} 3. Bc4 {[%clk 01:31:12]} {[%emt 00:00:24]} Bc5 {[%clk
01:30:55]} {[%emt 00:00:28]} 4. Nc3 {[%clk 01:30:45]} {[%emt 00:00:57]} Nf6
{[%clk 01:30:33]} {[%emt 00:00:52]} 5. d3 {[%clk 01:30:39]} {[%emt 00:00:35]}
a6 {[%clk 01:29:27]} {[%emt 00:01:36]} 6. a3 {[%clk 01:29:35]} {[%emt
00:01:35]} b5 {[%clk 01:29:08]} {[%emt 00:00:49]} 7. Ba2 {[%clk 01:28:56]}
{[%emt 00:01:08]} d6 {[%clk 01:29:10]} {[%emt 00:00:28]} 8. b4 {[%clk
01:26:38]} {[%emt 00:02:48]} Ba7 {[%clk 01:27:48]} {[%emt 00:01:52]} 9. h3
{[%clk 01:24:45]} {[%emt 00:02:23]} h6 {[%clk 01:26:58]} {[%emt 00:01:20]} 10.
O-O {[%clk 01:24:46]} {[%emt 00:00:29]} O-O {[%clk 01:27:13]} {[%emt 00:00:15]}
11. Bb2 {[%clk 01:21:27]} {[%emt 00:03:49]} Ne7 {[%clk 01:27:05]} {[%emt
00:00:38]} 12. Ne2 {[%clk 01:19:11]} {[%emt 00:02:47]} Ng6 {[%clk 01:26:58]}
{[%emt 00:00:37]} 13. Qd2 {[%clk 01:17:33]} {[%emt 00:02:08]} Nh5 {[%clk
01:23:55]} {[%emt 00:03:32]} 14. d4 {[%clk 01:06:21]} {[%emt 00:11:42]} Qf6
{[%clk 01:22:23]} {[%emt 00:02:00]} 15. dxe5 {[%clk 00:55:47]} {[%emt
00:11:06]} dxe5 {[%clk 01:22:42]} {[%emt 00:00:10]} 16. Qc3 {[%clk 00:55:54]}
{[%emt 00:00:24]} Re8 {[%clk 01:18:04]} {[%emt 00:05:05]} 17. Bd5 {[%clk
00:55:13]} {[%emt 00:01:14]} Nhf4 {[%clk 01:15:54]} {[%emt 00:02:40]} 18. Nxf4
{[%clk 00:54:55]} {[%emt 00:00:49]} Nxf4 {[%clk 01:16:18]} {[%emt 00:00:05]} 19.
Qc6 {[%clk 00:51:21]} {[%emt 00:04:04]} Be6 {[%clk 00:58:59]} {[%emt 00:17:49]}
20. Bxe6 {[%clk 00:43:06]} {[%emt 00:08:45]} Nxe6 {[%clk 00:55:22]} {[%emt
00:04:08]} 21. Bxe5 {[%clk 00:38:59]} {[%emt 00:04:37]} Qe7 {[%clk 00:54:21]}
{[%emt 00:01:30]} 22. Rad1 {[%clk 00:36:59]} {[%emt 00:02:30]} Ng5 {[%clk
00:53:20]} {[%emt 00:01:30]} 23. Nxg5 {[%clk 00:34:33]} {[%emt 00:02:58]} Qxe5
{[%clk 00:53:31]} {[%emt 00:00:18]} 24. Rd5 {[%clk 00:30:36]} {[%emt 00:04:27]}
Qf4 {[%clk 00:52:31]} {[%emt 00:01:28]} 25. Rf5 {[%clk 00:28:36]} {[%emt
00:02:32]} Qd6 {[%clk 00:47:07]} {[%emt 00:05:54]} 26. Qxd6 {[%clk 00:28:06]}
{[%emt 00:01:00]} cxd6 {[%clk 00:47:35]} {[%emt 00:00:04]} 27. Nxf7 {[%clk
00:26:56]} {[%emt 00:01:39]} Rxe4 {[%clk 00:47:58]} {[%emt 00:00:06]} 28. Nxd6
{[%clk 00:26:28]} {[%emt 00:00:58]} Rd4 {[%clk 00:48:22]} {[%emt 00:00:05]} 29.
Nb7 {[%clk 00:26:03]} {[%emt 00:00:56]} Rc8 {[%clk 00:48:19]} {[%emt 00:00:33]}
30. Rc1 {[%clk 00:21:58]} {[%emt 00:04:35]} Rc3 {[%clk 00:47:40]} {[%emt
00:01:04]} 31. Na5 {[%clk 00:21:09]} {[%emt 00:01:24]} Rd2 {[%clk 00:46:35]}
{[%emt 00:01:33]} 32. Nb3 {[%clk 00:17:34]} {[%emt 00:04:07]} Rdxc2 {[%clk
00:46:03]} {[%emt 00:01:02]} 33. Rxc2 {[%clk 00:17:25]} {[%emt 00:00:39]} Rxc2
{[%clk 00:46:26]} {[%emt 00:00:07]} 34. Rf3 {[%clk 00:16:44]} {[%emt 00:01:11]}
Ra2 {[%clk 00:44:31]} {[%emt 00:02:24]} 35. Na5 {[%clk 00:16:40]} {[%emt
00:00:35]} Bb8 {[%clk 00:43:27]} {[%emt 00:01:32]} 36. Nc6 {[%clk 00:16:32]}
{[%emt 00:00:41]} Ra1# {[%clk 00:43:49]} {[%emt 00:00:08]} 0-1

[Event "Swedish Chess Championship 2019: Kadett-SM"]
[Site "Stiga Sports Arena, Arenatorget 1, Eskilstuna, Sweden, Sweden"]
[Date "2019.07.08"]
[Round "1.5"]
[White "Mitra, Akash"]
[Black "Ostensson, Julia"]
[Result "1-0"]
[TimeControl "90 minutes for 40 moves + 30 minutes for the rest of the game + 30 seconds per move from move one"]
[WhiteFideId "1726714"]
[BlackFideId "1747703"]
[WhiteElo "1957"]
[BlackElo "1475"]

1. e4 {[%clk 01:30:53]} e5 {[%clk 01:30:39]} 2. Nf3 {[%clk 01:30:53]} Nc6
{[%clk 01:30:39]} 3. d4 {[%clk 01:30:53]} exd4 {[%clk 01:30:39]} 4. Nxd4 {[%clk
01:30:53]} Bc5 {[%clk 01:19:29]} {[%emt 02:46:47]} 5. Be3 Nxd4 {[%clk
01:19:29]} 6. Bxd4 {[%clk 01:31:57]} Bxd4 {[%clk 01:19:05]} {[%emt 00:01:06]} 7.
Qxd4 {[%clk 01:32:18]} Qf6 {[%clk 01:18:06]} {[%emt 00:01:37]} 8. e5 {[%clk
01:31:42]} Qb6 {[%clk 01:09:40]} {[%emt 00:10:03]} 9. Qxb6 axb6 {[%clk
01:09:55]} 10. Nc3 {[%clk 01:32:33]} {[%emt 00:00:06]} Ne7 {[%clk 01:04:09]}
{[%emt 00:06:15]} 11. Nb5 {[%clk 01:30:30]} {[%emt 00:02:32]} Kd8 {[%clk
00:58:40]} {[%emt 00:06:00]} 12. Bc4 {[%clk 01:27:46]} {[%emt 00:03:14]} Rf8
{[%clk 00:54:04]} {[%emt 00:05:06]} 13. O-O-O {[%clk 01:26:54]} {[%emt
00:01:22]} Ng6 {[%clk 00:48:46]} {[%emt 00:05:48]} 14. Rhe1 {[%clk 01:25:12]}
{[%emt 00:02:12]} Ra4 {[%clk 00:45:24]} {[%emt 00:03:52]} 15. Bb3 {[%clk
01:23:14]} {[%emt 00:02:28]} Rf4 {[%clk 00:37:00]} {[%emt 00:08:54]} 16. Rd2
{[%clk 01:21:57]} {[%emt 00:01:47]} Rf5 {[%clk 00:35:58]} {[%emt 00:01:32]} 17.
e6 {[%clk 01:11:30]} {[%emt 00:10:57]} fxe6 {[%clk 00:30:46]} {[%emt 00:05:41]}
18. Nd4 {[%clk 01:10:22]} {[%emt 00:01:38]} Ke7 {[%clk 00:18:07]} {[%emt
00:13:08]} 19. Nxf5+ {[%clk 01:10:13]} {[%emt 00:00:40]} Rxf5 {[%clk 00:18:30]}
{[%emt 00:00:07]} 20. c3 {[%clk 01:09:53]} {[%emt 00:00:50]} Rh5 {[%clk
00:16:51]} {[%emt 00:02:09]} 21. Bc2 {[%clk 01:07:53]} {[%emt 00:02:30]} Nh4
{[%clk 00:12:57]} {[%emt 00:04:24]} 22. Bd1 {[%clk 01:06:56]} {[%emt 00:01:26]}
Ra5 {[%clk 00:08:59]} {[%emt 00:04:30]} 23. Kb1 {[%clk 01:07:07]} {[%emt
00:00:18]} d6 {[%clk 00:08:08]} {[%emt 00:01:21]} 24. g3 {[%clk 01:06:33]}
{[%emt 00:01:04]} Ng6 {[%clk 00:08:10]} {[%emt 00:00:27]} 25. f4 {[%clk
01:06:49]} {[%emt 00:00:14]} Bd7 {[%clk 00:07:50]} {[%emt 00:00:50]} 26. Bb3
{[%clk 01:06:32]} {[%emt 00:00:47]} e5 {[%clk 00:04:21]} {[%emt 00:04:00]} 27.
Bc2 {[%clk 01:06:32]} {[%emt 00:00:30]} Be6 {[%clk 00:02:56]} {[%emt 00:01:55]}
28. b3 {[%clk 01:05:17]} {[%emt 00:01:45]} Nf8 {[%clk 00:02:07]} {[%emt
00:01:19]} 29. c4 {[%clk 01:03:22]} {[%emt 00:02:25]} exf4 {[%clk 00:01:03]}
{[%emt 00:01:34]} 30. gxf4 {[%clk 01:03:41]} {[%emt 00:00:12]} Kd7 {[%clk
00:00:50]} {[%emt 00:00:43]} 31. Rde2 {[%clk 01:03:07]} {[%emt 00:01:02]} g6
{[%clk 00:00:44]} {[%emt 00:00:38]} 32. h4 {[%clk 01:02:50]} {[%emt 00:00:46]}
Rh5 {[%clk 00:00:41]} {[%emt 00:00:34]} 33. Rh2 {[%clk 01:03:07]} {[%emt
00:00:13]} b5 {[%clk 00:00:36]} {[%emt 00:00:36]} 34. cxb5 {[%clk 01:02:09]}
{[%emt 00:01:27]} Rxb5 {[%clk 00:00:54]} {[%emt 00:00:13]} 35. h5 {[%clk
01:01:14]} {[%emt 00:01:24]} gxh5 {[%clk 00:00:49]} {[%emt 00:00:36]} 36. f5
{[%clk 01:00:31]} {[%emt 00:01:12]} Bxf5 {[%clk 00:00:53]} {[%emt 00:00:27]} 37.
Bxf5+ {[%clk 01:00:56]} {[%emt 00:00:05]} Rxf5 {[%clk 00:01:16]} {[%emt
00:00:08]} 38. Reh1 {[%clk 01:01:21]} {[%emt 00:00:04]} b6 {[%clk 00:00:35]}
{[%emt 00:01:11]} 39. Rxh5 {[%clk 00:59:36]} {[%emt 00:02:15]} Rxh5 {[%clk
00:00:40]} {[%emt 00:00:26]} 40. Rxh5 {[%clk 01:00:02]} {[%emt 00:00:04]} Kc6
{[%clk 00:00:54]} {[%emt 00:00:15]} 41. Rf5 {[%clk 00:59:49]} {[%emt 00:00:43]}
Ne6 {[%clk 00:00:44]} {[%emt 00:00:41]} 42. Rf7 {[%clk 00:59:31]} {[%emt
00:00:48]} Ng5 {[%clk 00:00:37]} {[%emt 00:00:38]} 43. Rg7 {[%clk 00:59:54]}
{[%emt 00:00:07]} Ne4 {[%clk 00:00:32]} {[%emt 00:00:36]} 44. Rxh7 {[%clk
01:00:16]} {[%emt 00:00:07]} d5 {[%clk 00:00:47]} {[%emt 00:00:15]} 45. Kc2
{[%clk 01:00:08]} {[%emt 00:00:37]} Nc5 {[%clk 00:00:36]} {[%emt 00:00:42]} 46.
Kc3 {[%clk 01:00:08]} {[%emt 00:00:30]} Na6 {[%clk 00:00:34]} {[%emt 00:00:32]}
47. a3 {[%clk 00:59:18]} {[%emt 00:01:20]} Kc5 {[%clk 00:00:32]} {[%emt
00:00:33]} 48. Rh6 {[%clk 00:55:19]} {[%emt 00:04:28]} Kb5 {[%clk 00:00:35]}
{[%emt 00:00:28]} 49. Kd4 {[%clk 00:46:14]} {[%emt 00:09:35]} Nc5 {[%clk
00:17:05]} {[%emt 00:14:55]} 50. b4 {[%clk 01:07:40]} {[%emt 00:09:04]} Na6
{[%clk 00:13:59]} {[%emt 00:03:36]} 51. Kxd5 {[%clk 01:06:19]} {[%emt
00:01:50]} c5 {[%clk 00:03:47]} {[%emt 00:10:42]} 52. bxc5 {[%clk 00:57:12]}
{[%emt 00:09:38]} Nxc5 {[%clk 00:02:27]} {[%emt 00:01:50]} 53. Rh4 {[%clk
00:56:16]} {[%emt 00:01:24]} Na6 {[%clk 00:00:36]} {[%emt 00:02:23]} 54. Rh3
{[%clk 00:52:30]} {[%emt 00:04:15]} Nc5 {[%clk 00:00:39]} {[%emt 00:00:28]} 55.
Kd4 {[%clk 00:51:15]} {[%emt 00:01:44]} Ne6+ {[%clk 00:00:36]} {[%emt
00:00:34]} 56. Kc3 {[%clk 00:51:40]} {[%emt 00:00:05]} Nc5 {[%clk 00:00:33]}
{[%emt 00:00:33]} 57. Rh8 {[%clk 00:50:46]} {[%emt 00:01:24]} Ne4+ {[%clk
00:00:36]} {[%emt 00:00:27]} 58. Kd4 {[%clk 00:51:00]} {[%emt 00:00:15]} Nc5
{[%clk 00:00:34]} {[%emt 00:00:32]} 59. Ra8 {[%clk 00:50:54]} {[%emt 00:00:33]}
Na4 {[%clk 00:00:33]} {[%emt 00:00:35]} 60. Kd5 {[%clk 00:50:47]} {[%emt
00:00:35]} Nc3 {[%clk 00:00:46]} {[%emt 00:00:19]} 61. Kd6 {[%clk 00:51:02]}
{[%emt 00:00:12]} Ne4+ {[%clk 00:00:34]} {[%emt 00:00:45]} 62. Kc7 {[%clk
00:50:58]} {[%emt 00:00:33]} Nc5 {[%clk 00:00:39]} {[%emt 00:00:26]} 63. Re8
{[%clk 00:49:59]} {[%emt 00:01:28]} Na6+ {[%clk 00:00:40]} {[%emt 00:00:30]} 64.
Kb7 {[%clk 00:50:10]} {[%emt 00:00:19]} Nc5+ {[%clk 00:00:40]} {[%emt
00:00:31]} 65. Ka7 {[%clk 00:50:29]} {[%emt 00:00:10]} Ka5 {[%clk 00:00:34]}
{[%emt 00:00:36]} 66. Re5 {[%clk 00:50:32]} {[%emt 00:00:27]} Kb5 {[%clk
00:00:38]} {[%emt 00:00:27]} 67. Rh5 {[%clk 00:50:49]} {[%emt 00:00:09]} Kc6
{[%clk 00:00:32]} {[%emt 00:00:39]} 68. Rh6+ {[%clk 00:49:09]} {[%emt
00:02:10]} Kb5 {[%clk 00:00:47]} {[%emt 00:00:15]} 69. Rxb6+ {[%clk 00:45:36]}
{[%emt 00:04:03]} Ka4 {[%clk 00:00:54]} {[%emt 00:00:23]} 70. Rc6 {[%clk
00:45:08]} {[%emt 00:00:56]} Nb3 {[%clk 00:00:34]} {[%emt 00:00:52]} 71. Ra6+
{[%clk 00:45:14]} {[%emt 00:00:23]} Kb5 {[%clk 00:00:37]} {[%emt 00:00:28]} 72.
a4+ {[%clk 00:45:19]} {[%emt 00:00:26]} Kb4 {[%clk 00:00:36]} {[%emt 00:00:31]}
73. Kb6 {[%clk 00:43:48]} {[%emt 00:02:00]} Nc5 {[%clk 00:00:48]} {[%emt
00:00:19]} 74. a5 {[%clk 00:43:50]} {[%emt 00:00:28]} Nd7+ {[%clk 00:00:43]}
{[%emt 00:00:35]} 75. Kc7 {[%clk 00:42:55]} {[%emt 00:00:52]} Nc5 {[%clk
00:01:03]} {[%emt 00:00:30]} 76. Rc6 {[%clk 00:42:13]} {[%emt 00:01:25]} 1-0